bitfinex/quotes_SOLUSD_20260223
["timestamp","ask_amount","ask_price","bid_price","bid_amount"]
[1771839915805,0.1,80.34,80.321,1.98221564]
[1771839916400,0.1,80.34,80.313,1.98221564]
[1771839916588,12.78007861,80.33,80.313,1.98221564]
[1771839916788,12.78007861,80.33,80.294,1.98221564]
[1771839916789,12.78007861,80.32,80.294,1.98221564]
[1771839917006,12.44872662,80.33,80.286,1.98221564]
[1771839917007,12.78007861,80.31,80.286,1.98221564]
[1771839917305,1.66591345,80.319,80.286,1.98221564]
[1771839918308,1.62886109,80.325,80.286,1.98221564]
[1771839918496,1.62886109,80.336,80.291,1.64434347]
[1771839918904,12.78007861,80.32,80.293,1.64434347]
[1771839919097,1.72886109,80.34,80.3,12.78007861]
[1771839919306,12.88007861,80.34,80.301,1.64434347]
[1771839919498,12.78007861,80.33,80.301,1.64434347]
[1771839919892,0.1,80.34,80.301,1.64434347]
[1771839920093,0.1,80.34,80.32,12.78007861]
[1771839920304,12.88007861,80.34,80.312,1.64434347]
[1771839921087,12.88007861,80.34,80.276,99.6555586]
[1771839921088,0.1,80.34,80.314,1.64434347]
[1771839921523,12.88007861,80.34,80.314,1.64434347]
[1771839921809,14.48225267,80.34,80.314,1.64434347]
[1771839922110,12.78007861,80.33,80.313,12.45128434]
[1771839922315,1.59348195,80.329,80.309,12.45186562]
[1771839922809,12.78007861,80.33,80.291,1.64434347]
[1771839922993,12.78007861,80.33,80.301,1.64434347]
[1771839923194,0.1,80.34,80.311,1.64434347]
[1771839923416,12.88007861,80.34,80.311,1.64434347]
[1771839924502,0.1,80.34,80.311,1.64434347]
[1771839924903,12.88007861,80.34,80.311,1.64434347]
[1771839925196,12.78007861,80.38,80.331,1.64434347]
[1771839925406,1.6409595,80.393,80.351,1.64434347]
[1771839925595,12.43844405,80.396,80.361,1.64434347]
[1771839925797,12.78007861,80.39,80.361,1.64434347]
[1771839926090,12.78007861,80.38,80.351,1.64434347]
[1771839926692,1.6409595,80.379,80.342,1.64434347]
[1771839926895,1.6409595,80.379,80.322,43.57461217]
[1771839926896,1.6409595,80.379,80.323,1.64434347]
[1771839927113,1.6409595,80.359,80.323,1.64434347]
[1771839927509,12.4443117,80.358,80.325,1.64434347]
[1771839927893,12.78007861,80.36,80.325,1.64434347]
[1771839928698,12.78007861,80.37,80.331,1.64434347]
[1771839929320,1.6409595,80.369,80.331,1.64434347]
[1771839929520,12.78007861,80.36,80.333,1.64434347]
[1771839930422,1.63536932,80.37,80.333,1.64434347]
[1771839930600,12.78007861,80.36,80.333,1.64434347]
[1771839931417,1.63536932,80.37,80.335,1.64434347]
[1771839931725,12.78007861,80.36,80.335,1.64434347]
[1771839931940,14.39973267,80.36,80.334,12.44802947]
[1771839932222,1.61195309,80.339,80.283,1.64434347]
[1771839932431,12.78007861,80.31,80.283,1.44434347]
[1771839932632,12.78007861,80.32,80.29,12.78007861]
[1771839932930,12.78007861,80.33,80.29,12.78007861]
[1771839933410,12.78007861,80.32,80.29,12.78007861]
[1771839933609,12.78007861,80.32,80.28,12.78007861]
[1771839934122,12.78007861,80.32,80.29,12.78007861]
[1771839934327,12.78007861,80.32,80.291,1.64434347]
[1771839934823,12.78007861,80.33,80.291,1.64434347]
[1771839935025,1.6409595,80.352,80.301,1.64434347]
[1771839935225,12.78007861,80.35,80.311,1.64434347]
[1771839935414,3.69383402,80.353,80.311,1.64434347]
[1771839935619,12.78007861,80.35,80.311,1.64434347]
[1771839935820,12.4457056,80.349,80.312,12.45143938]
[1771839936020,12.4457056,80.349,80.313,1.64434347]
[1771839936623,1.6409595,80.398,80.341,1.64434347]
[1771839936822,12.78007861,80.38,80.35,12.78007861]
[1771839937026,1.6409595,80.379,80.342,1.64434347]
[1771839937839,12.44121525,80.378,80.344,1.64434347]
[1771839938543,1.6409595,80.394,80.351,1.64434347]
[1771839938830,1.6409595,80.394,80.361,1.64434347]
[1771839939214,12.78007861,80.39,80.361,1.64434347]
[1771839939524,12.78007861,80.39,80.351,1.64434347]
[1771839939525,1.6409595,80.389,80.351,1.64434347]
[1771839940027,12.43827506,80.397,80.361,1.64434347]
[1771839940212,12.78007861,80.39,80.361,1.64434347]
[1771839940620,0.1,80.4,80.371,1.64434347]
[1771839940816,12.88007861,80.4,80.371,1.64434347]
[1771839941225,12.43796564,80.399,80.371,1.64434347]
[1771839941406,14.07892514,80.399,80.371,1.64434347]
[1771839942114,12.78007861,80.38,80.359,1.64434347]
[1771839942633,14.07892514,80.399,80.36,12.78007861]
[1771839942928,25.3179379,80.4,80.371,1.64434347]
[1771839943633,0.1,80.4,80.38,12.78007861]
[1771839944011,0.1,80.4,80.381,1.64434347]
[1771839945634,0.1,80.4,80.383,1.64434347]
[1771839946036,0.1,80.4,80.381,12.4407288]
[1771839946224,12.88007861,80.4,80.375,1.64434347]
[1771839946427,1.6409595,80.399,80.366,1.64434347]
[1771839946734,1.6409595,80.399,80.367,12.44291811]
[1771839947540,0.1,80.4,80.37,1.55777527]
[1771839947735,12.43468954,80.421,80.382,1.55777527]
[1771839947928,12.43468954,80.421,80.391,1.55777527]
[1771839949019,12.78007861,80.42,80.391,1.55777527]
[1771839949344,12.78007861,80.41,80.381,1.55777527]
[1771839950050,12.78007861,80.41,80.341,1.24469448]
[1771839950051,12.78007861,80.4,80.371,1.55777527]
[1771839951220,12.78007861,80.41,80.38,12.78007861]
[1771839951422,12.78007861,80.41,80.381,1.55777527]
[1771839952639,12.4364188,80.409,80.383,1.55777527]
[1771839953820,12.43332628,80.429,80.391,1.55777527]
[1771839954021,12.78007861,80.42,80.391,1.55777527]
[1771839954251,12.4320897,80.437,80.391,1.55777527]
[1771839954474,12.78007861,80.43,80.401,1.55777527]
[1771839954628,25.21337196,80.43,80.403,1.55777527]
[1771839955860,6.50250856,80.451,80.42,12.78007861]
[1771839956140,1.62414975,80.479,80.44,12.78007861]
[1771839956319,1.62414975,80.469,80.44,12.78007861]
[1771839956527,1.62414975,80.489,80.45,12.78007861]
[1771839956727,1.62414975,80.489,80.441,1.48418888]
[1771839957046,1.62414975,80.509,80.461,1.48418888]
[1771839957223,1.62414975,80.499,80.47,12.78007861]
[1771839957920,1.62414975,80.497,80.451,1.47965071]
[1771839958117,12.42266888,80.498,80.431,1.47965071]
[1771839958118,1.62414975,80.469,80.431,1.47965071]
[1771839958323,1.62414975,80.459,80.43,12.78007861]
[1771839958733,1.62414975,80.469,80.431,1.47516466]
[1771839958936,1.62414975,80.459,80.43,14.25524327]
[1771839959241,1.62414975,80.459,80.421,1.47073015]
[1771839959543,1.62414975,80.459,80.393,49.75544058]
[1771839959544,1.62414975,80.439,80.402,13.90821472]
[1771839959735,1.62414975,80.439,80.4,56.31238611]
[1771839960043,12.43193515,80.438,80.4,45.00303765]
[1771839960226,1.62414975,80.437,80.41,12.78007861]
[1771839960428,1.62414975,80.437,80.401,1.46634656]
[1771839960744,1.62414975,80.449,80.41,12.78007861]
[1771839961039,1.62414975,80.449,80.411,1.46634656]
[1771839961442,1.62414975,80.449,80.42,12.78007861]
[1771839961650,49.70213575,80.48,80.4,43.5323075]
[1771839961651,1.62414975,80.472,80.44,12.78007861]
[1771839961847,1.62414975,80.469,80.432,1.45366552]
[1771839962354,1.62414975,80.467,80.433,12.43270796]
[1771839962932,1.62414975,80.467,80.44,12.78007861]
[1771839963126,14.0502104,80.477,80.44,14.22120873]
[1771839963548,1.62414975,80.476,80.44,14.22120873]
[1771839963844,14.40422836,80.47,80.44,12.78007861]
[1771839964035,1.62414975,80.469,80.44,12.78007861]
[1771839964666,1.62414975,80.469,80.441,12.43147151]
[1771839964950,12.42606065,80.477,80.45,12.78007861]
[1771839965326,12.42606065,80.477,80.442,1.40438124]
[1771839965532,1.62414975,80.479,80.45,12.72987878]
[1771839965842,1.62414975,80.479,80.442,1.40438124]
[1771839966628,1.62414975,80.477,80.442,1.40438124]
[1771839966829,1.62414975,80.477,80.45,12.72987878]
[1771839968241,31.05524088,80.502,80.45,12.72987878]
[1771839968448,1.62414975,80.492,80.46,12.72987878]
[1771839968744,1.62414975,80.502,80.47,12.72987878]
[1771839968946,1.62414975,80.502,80.48,12.72987878]
[1771839969247,1.62414975,80.509,80.48,12.72987878]
[1771839969486,1.62414975,80.509,80.49,12.72987878]
[1771839969938,1.62414975,80.518,80.5,12.72987878]
[1771839970142,1.62414975,80.549,80.511,1.35732256]
[1771839970531,1.62414975,80.549,80.51,12.72987878]
[1771839970730,1.62414975,80.549,80.52,12.72987878]
[1771839970957,1.62414975,80.549,80.521,12.41912047]
[1771839971355,1.62414975,80.547,80.521,12.41912047]
[1771839971536,1.62414975,80.539,80.5,12.72987878]
[1771839972251,43.45235139,80.548,80.511,1.32342847]
[1771839972252,1.62414975,80.548,80.511,1.32342847]
[1771839972437,0.1,80.55,80.53,12.72987878]
[1771839972745,0.1,80.55,80.487,192.57768333]
[1771839972746,1.62414975,80.539,80.487,43.48528332]
[1771839972939,1.62414975,80.529,80.491,12.42374923]
[1771839973145,1.62414975,80.528,80.491,12.42374923]
[1771839973640,1.62414975,80.528,80.5,12.72987878]
[1771839973845,1.62414975,80.528,80.491,12.42374923]
[1771839974042,1.62414975,80.519,80.461,43.49933507]
[1771839974250,1.62414975,80.509,80.47,12.72987878]
[1771839974449,1.62414975,80.499,80.46,12.72987878]
[1771839974638,1.62414975,80.489,80.45,12.72987878]
[1771839974949,1.62414975,80.489,80.425,43.51880633]
[1771839974950,1.62414975,80.479,80.44,12.72987878]
[1771839975142,1.62414975,80.479,80.45,12.72987878]
[1771839975945,1.62414975,80.489,80.46,12.72987878]
[1771839976854,14.04820769,80.489,80.46,12.72987878]
[1771839977151,1.62414975,80.486,80.451,12.42992629]
[1771839977353,14.35402853,80.48,80.45,12.72987878]
[1771839977749,1.60294637,80.489,80.451,12.42992629]
[1771839977954,1.60294637,80.489,80.46,12.72987878]
[1771839978430,1.60294637,80.489,80.451,12.42992629]
[1771839979049,1.60294637,80.479,80.446,12.43067487]
[1771839979252,1.60294637,80.479,80.44,12.72987878]
[1771839979253,1.60294637,80.469,80.441,12.43147151]
[1771839979438,1.60294637,80.479,80.45,12.72987878]
[1771839979634,1.60294637,80.479,80.441,12.43147151]
[1771839979834,14.33282515,80.47,80.441,12.43147151]
[1771839980435,1.60294637,80.469,80.441,12.43147151]
[1771839980843,1.60294637,80.467,80.43,12.72987878]
[1771839981046,1.60294637,80.467,80.41,155.45330181]
[1771839981047,1.60294637,80.498,80.45,12.72987878]
[1771839981246,43.47880097,80.499,80.45,12.72987878]
[1771839981247,1.60294637,80.489,80.45,12.72987878]
[1771839981445,1.60294637,80.489,80.413,3.69383402]
[1771839981647,1.60294637,80.489,80.46,12.72987878]
[1771839981836,1.60294637,80.489,80.413,3.69383402]
[1771839982159,1.60294637,80.489,80.45,12.72987878]
[1771839982451,1.60294637,80.488,80.45,12.72987878]
[1771839982847,1.60294637,80.479,80.45,12.72987878]
[1771839983156,1.60294637,80.479,80.436,31.08057303]
[1771839983157,1.60294637,80.479,80.451,12.42992629]
[1771839983351,1.60294637,80.488,80.451,12.42992629]
[1771839983651,1.60294637,80.488,80.46,12.72987878]
[1771839984066,12.72987878,80.5,80.47,12.72987878]
[1771839984067,1.60294637,80.5,80.47,12.72987878]
[1771839985242,1.60294637,80.5,80.471,12.42683699]
[1771839985433,62.07953778,80.542,80.471,12.42683699]
[1771839985434,1.60294637,80.548,80.49,12.72987878]
[1771839985638,6.49460752,80.58,80.54,12.72987878]
[1771839985639,1.60294637,80.558,80.54,12.72987878]
[1771839985844,31.0065982,80.628,80.54,12.72987878]
[1771839986042,31.0065982,80.628,80.52,12.72987878]
[1771839986043,43.40923748,80.628,80.57,12.72987878]
[1771839986240,12.72987878,80.59,80.483,3.69383402]
[1771839986444,12.72987878,80.59,80.55,12.72987878]
[1771839986648,12.72987878,80.6,80.56,12.72987878]
[1771839987244,12.72987878,80.59,80.56,12.72987878]
[1771839987440,43.41139114,80.624,80.56,12.72987878]
[1771839987640,12.72987878,80.62,80.58,12.72987878]
[1771839987850,1.4718917,80.619,80.571,1.3654716]
[1771839988047,1.4718917,80.599,80.56,12.72987878]
[1771839988242,12.72987878,80.58,80.537,1.35020123]
[1771839988446,3.69383402,80.621,80.551,1.35020123]
[1771839988447,1.4718917,80.589,80.551,1.35020123]
[1771839988862,1.4718917,80.589,80.56,12.72987878]
[1771839989660,12.40725576,80.598,80.494,49.69312881]
[1771839989661,1.4718917,80.579,80.54,1.33510626]
[1771839989860,1.4718917,80.569,80.53,12.72987878]
[1771839990363,1.4718917,80.569,80.54,12.72987878]
[1771839990762,1.4718917,80.579,80.55,12.72987878]
[1771839990962,1.4718917,80.579,80.538,1.32018466]
[1771839991265,12.72987878,80.58,80.55,12.72987878]
[1771839991266,1.4718917,80.577,80.55,12.72987878]
[1771839991954,1.4718917,80.577,80.54,14.03410459]
[1771839992160,1.4718917,80.569,80.53,25.1476113]
[1771839992367,1.4718917,80.569,80.54,12.72987878]
[1771839992661,13.88222702,80.578,80.55,12.72987878]
[1771839993270,1.4718917,80.577,80.55,12.72987878]
[1771839994242,1.4718917,80.577,80.55,25.14451673]
[1771839994448,1.4718917,80.575,80.54,12.72987878]
[1771839994764,1.4718917,80.575,80.55,12.72987878]
[1771839995552,1.4718917,80.575,80.541,1.25744066]
[1771839995869,1.4718917,80.569,80.54,12.72987878]
[1771839996067,1.4718917,80.582,80.55,12.72987878]
[1771839998646,111.63270421,80.622,80.52,12.72987878]
[1771839998647,1.4718917,80.604,80.552,1.19753007]
[1771839998970,1.4718917,80.604,80.58,12.72987878]
[1771839999158,1.4718917,80.604,80.57,12.72987878]
[1771839999873,1.4718917,80.604,80.58,12.72987878]
[1771840000566,1.4718917,80.604,80.58,25.13979947]
[1771840001273,1.4718917,80.604,80.576,12.41062468]
[1771840002556,1.4718917,80.603,80.571,12.41141353]
[1771840002955,1.4718917,80.603,80.561,1.14032494]
[1771840003163,1.4718917,80.603,80.57,12.72987878]
[1771840003355,1.4718917,80.612,80.58,12.72987878]
[1771840003675,49.58391709,80.672,80.58,12.72987878]
[1771840003676,1.4718917,80.649,80.6,12.72987878]
[1771840003848,1.4718917,80.629,80.577,1.12643195]
[1771840004051,1.4718917,80.627,80.6,12.72987878]
[1771840004266,1.4718917,80.627,80.591,1.12643195]
[1771840004468,1.4718917,80.627,80.59,12.72987878]
[1771840004661,1.4718917,80.625,80.59,25.13836023]
[1771840005057,1.4718917,80.625,80.59,12.72987878]
[1771840005258,1.4718917,80.625,80.588,12.40866424]
[1771840005463,1.4718917,80.625,80.59,12.72987878]
[1771840005664,1.4718917,80.625,80.588,12.40866424]
[1771840005863,1.4718917,80.625,80.59,12.72987878]
[1771840006068,1.4718917,80.619,80.58,12.72987878]
[1771840006273,1.4718917,80.599,80.508,49.68432812]
[1771840006574,1.4718917,80.589,80.561,12.41295415]
[1771840006772,1.4718917,80.588,80.557,12.41342555]
[1771840006991,1.4718917,80.588,80.56,12.72987878]
[1771840007573,1.4718917,80.588,80.548,1.05932427]
[1771840007874,1.4718917,80.588,80.55,1.05932427]
[1771840008070,1.4718917,80.588,80.56,13.78920305]
[1771840008274,1.2155377,80.594,80.57,12.72987878]
[1771840008479,1.2155377,80.594,80.561,1.05932427]
[1771840008690,1.2155377,80.592,80.562,12.41280007]
[1771840008976,1.2155377,80.592,80.57,12.72987878]
[1771840009164,1.2155377,80.592,80.562,12.41280007]
[1771840009370,1.2155377,80.592,80.56,12.72987878]
[1771840009558,12.72987878,80.59,80.56,12.72987878]
[1771840009756,1.2155377,80.589,80.56,12.72987878]
[1771840011060,12.40879535,80.588,80.56,25.14285446]
[1771840011460,1.2155377,80.587,80.56,12.72987878]
[1771840011776,1.31191387,80.569,80.521,43.46692166]
[1771840011959,1.31191387,80.559,80.53,12.72987878]
[1771840012360,43.43078373,80.588,80.541,1.28530771]
[1771840012555,43.43078373,80.588,80.521,43.46692166]
[1771840012556,31.01846703,80.598,80.56,12.72987878]
[1771840013562,12.72987878,80.59,80.541,1.27478047]
[1771840013762,12.72987878,80.58,80.541,1.27478047]
[1771840014279,12.72987878,80.58,80.55,12.72987878]
[1771840014505,1.2155377,80.579,80.55,12.72987878]
[1771840015670,13.62523323,80.583,80.56,12.72987878]
[1771840015977,13.62523323,80.583,80.551,1.25073029]
[1771840015978,1.2155377,80.582,80.551,1.25073029]
[1771840016279,1.2155377,80.582,80.55,13.96879075]
[1771840017583,1.2155377,80.582,80.55,12.72987878]
[1771840018584,1.2155377,80.58,80.55,12.41463789]
[1771840018767,1.2155377,80.58,80.55,25.14448688]
[1771840018969,1.2155377,80.592,80.57,12.72987878]
[1771840019173,1.2155377,80.589,80.55,12.72987878]
[1771840019760,1.2155377,80.589,80.56,13.93439389]
[1771840019965,13.62278562,80.599,80.58,12.72987878]
[1771840020384,1.2155377,80.599,80.58,12.72987878]
[1771840020587,13.6227002,80.599,80.57,12.72987878]
[1771840021084,1.2155377,80.606,80.58,12.72987878]
[1771840021583,1.2155377,80.589,80.55,12.72987878]
[1771840021882,43.42062228,80.607,80.571,1.18156164]
[1771840022085,49.59358854,80.656,80.521,124.19120476]
[1771840022086,1.2155377,80.616,80.59,12.72987878]
[1771840022265,1.2155377,80.616,80.532,3.69383402]
[1771840022266,1.2155377,80.609,80.57,13.90016104]
[1771840022778,1.2155377,80.608,80.58,12.72987878]
[1771840023167,1.2155377,80.607,80.571,12.41141353]
[1771840024390,1.2155377,80.589,80.55,12.72987878]
[1771840024683,1.2155377,80.589,80.5,105.60926302]
[1771840024684,1.2155377,80.559,80.522,12.41896624]
[1771840024870,1.2155377,80.557,80.53,12.72987878]
[1771840025269,1.2155377,80.563,80.53,12.70243153]
[1771840026489,1.2155377,80.559,80.516,12.41982428]
[1771840026679,1.2155377,80.549,80.52,12.70243153]
[1771840026876,1.2155377,80.558,80.521,43.46692166]
[1771840027077,1.2155377,80.558,80.521,12.41912047]
[1771840027591,1.2155377,80.558,80.521,43.46692166]
[1771840027793,1.2155377,80.558,80.488,49.6963648]
[1771840027794,1.2155377,80.549,80.516,12.41987647]
[1771840028092,1.2155377,80.539,80.5,12.70243153]
[1771840028275,1.2155377,80.539,80.51,12.70243153]
[1771840030089,12.70243153,80.55,80.51,12.35738653]
[1771840030090,1.2155377,80.537,80.51,12.35738653]
[1771840030270,1.2155377,80.537,80.502,12.42205162]
[1771840031068,1.2155377,80.537,80.51,12.35738653]
[1771840031784,1.2155377,80.537,80.502,12.42205162]
[1771840032174,1.2155377,80.535,80.5,12.35738653]
[1771840032375,1.2155377,80.529,80.49,13.4318093]
[1771840032797,43.45882586,80.536,80.471,43.49392948]
[1771840032798,1.2155377,80.519,80.481,1.06437398]
[1771840033182,1.2155377,80.519,80.49,12.35738653]
[1771840034402,13.63508833,80.519,80.491,12.42374923]
[1771840034999,1.2155377,80.518,80.487,12.42433533]
[1771840035294,1.2155377,80.518,80.49,12.35738653]
[1771840035698,1.2155377,80.518,80.487,12.42433533]
[1771840036190,1.2155377,80.516,80.482,12.42513854]
[1771840037683,1.13047053,80.499,80.458,31.07178192]
[1771840037989,1.13047053,80.499,80.471,12.42683699]
[1771840038190,1.13047053,80.499,80.467,12.42742867]
[1771840038600,1.13047053,80.499,80.46,12.35738653]
[1771840039297,1.13047053,80.499,80.458,31.07178192]
[1771840039591,1.13047053,80.507,80.48,9.89700108]
[1771840041185,1.13047053,80.517,80.49,9.89700108]
[1771840041399,1.13047053,80.529,80.491,0.9611708]
[1771840041579,1.13047053,80.519,80.483,0.9611708]
[1771840042001,1.13047053,80.519,80.49,9.89700108]
[1771840042600,1.13047053,80.519,80.483,0.9611708]
[1771840042897,1.13047053,80.519,80.49,9.89700108]
[1771840043284,1.13047053,80.517,80.49,9.89700108]
[1771840044285,1.13047053,80.515,80.484,12.42482977]
[1771840044518,1.13047053,80.515,80.49,9.89700108]
[1771840049304,1.13047053,80.513,80.48,9.89700108]
[1771840049804,1.13047053,80.513,80.48,10.79093777]
[1771840050000,12.42020021,80.514,80.471,0.89393669]
[1771840050001,1.13047053,80.509,80.471,0.89393669]
[1771840050305,1.13047053,80.509,80.472,0.88596097]
[1771840050804,43.47070074,80.514,80.49,9.89700108]
[1771840050805,1.13047053,80.513,80.49,9.89700108]
[1771840051003,1.13047053,80.512,80.481,0.88596097]
[1771840051399,1.13047053,80.512,80.483,0.87807685]
[1771840051703,1.13047053,80.51,80.49,9.89700108]
[1771840052106,1.13047053,80.51,80.483,0.87807685]
[1771840052685,1.13047053,80.51,80.48,9.89700108]
[1771840052884,1.13047053,80.509,80.47,10.09700108]
[1771840053487,1.13047053,80.507,80.47,10.09700108]
[1771840053693,1.13047053,80.507,80.472,0.86257924]
[1771840055488,1.13047053,80.507,80.48,9.89700108]
[1771840055689,31.04959095,80.517,80.48,9.89700108]
[1771840055690,1.13047053,80.505,80.48,9.89700108]
[1771840056100,1.13047053,80.505,80.475,13.27357189]
[1771840056302,1.13047053,80.505,80.475,0.8474356]
[1771840056505,1.13047053,80.505,80.48,9.89700108]
[1771840057807,1.13047053,80.503,80.48,9.89700108]
[1771840058892,12.42104757,80.509,80.481,12.42529292]
[1771840059109,12.42104757,80.509,80.482,0.82536619]
[1771840059408,12.42104757,80.509,80.48,9.89700108]
[1771840059409,1.13047053,80.508,80.48,22.32241772]
[1771840059914,1.13047053,80.506,80.48,9.89700108]
[1771840060507,1.13047053,80.506,80.475,13.24430906]
[1771840060809,1.13047053,80.506,80.47,0.2]
[1771840060993,1.13047053,80.499,80.471,31.06709249]
[1771840061193,1.13047053,80.499,80.471,12.42683699]
[1771840061813,1.13047053,80.499,80.47,0.2]
[1771840062016,1.13047053,80.497,80.47,0.2]
[1771840064813,1.13047053,80.495,80.47,0.2]
[1771840065315,1.13047053,80.495,80.47,23.30066277]
[1771840065514,1.13047053,80.502,80.477,0.7767503]
[1771840065698,1.13047053,80.502,80.47,0.2]
[1771840065904,1.13047053,80.502,80.471,12.42683699]
[1771840066310,1.13047053,80.502,80.48,9.89700108]
[1771840067033,12.42220593,80.501,80.473,12.42652815]
[1771840067220,1.13047053,80.5,80.473,12.42652815]
[1771840069511,0.95203683,80.498,80.47,10.09700108]
[1771840069711,0.95203683,80.498,80.471,12.42683699]
[1771840069918,0.95203683,80.498,80.47,0.2]
[1771840070203,0.95203683,80.498,80.47,10.09700108]
[1771840070803,0.95203683,80.498,80.47,0.2]
[1771840071403,0.95203683,80.496,80.47,0.2]
[1771840072021,0.95203683,80.496,80.471,12.42683699]
[1771840072421,0.95203683,80.496,80.472,0.72579638]
[1771840073008,0.95203683,80.496,80.47,0.2]
[1771840073210,0.95203683,80.496,80.47,10.09700108]
[1771840073420,0.95203683,80.494,80.47,10.09700108]
[1771840073920,0.95203683,80.494,80.47,0.2]
[1771840074706,0.95203683,80.509,80.472,0.71377686]
[1771840075408,0.95203683,80.508,80.474,0.70787045]
[1771840076811,0.95203683,80.508,80.47,10.09700108]
[1771840076812,0.95203683,80.521,80.5,9.89700108]
[1771840077123,0.95203683,80.509,80.474,12.42628152]
[1771840077424,0.95203683,80.509,80.471,0.69626036]
[1771840077727,0.95203683,80.509,80.48,9.89700108]
[1771840078227,0.95203683,80.509,80.471,0.69626036]
[1771840078604,0.95203683,80.509,80.48,9.89700108]
[1771840080215,0.95203683,80.507,80.47,10.09700108]
[1771840080524,0.95203683,80.489,80.47,0.2]
[1771840080726,0.95203683,80.508,80.47,0.2]
[1771840080926,0.95203683,80.499,80.47,0.2]
[1771840082332,0.95203683,80.499,80.471,12.42683699]
[1771840082526,0.95203683,80.497,80.47,0.2]
[1771840083626,9.89700108,80.49,80.47,0.2]
[1771840083827,0.95203683,80.489,80.47,0.2]
[1771840085012,0.95203683,80.487,80.47,0.2]
[1771840085231,0.95203683,80.479,80.409,12.4364188]
[1771840085424,0.95203683,80.459,80.421,0.65241189]
[1771840085616,0.95203683,80.439,80.409,12.4364188]
[1771840085930,3.69383402,80.485,80.411,0.65241189]
[1771840086117,0.95203683,80.449,80.411,0.65241189]
[1771840086434,0.95203683,80.449,80.409,43.52746582]
[1771840086435,0.95203683,80.439,80.409,12.4364188]
[1771840087136,0.95203683,80.429,80.391,12.43920339]
[1771840087322,0.95203683,80.419,80.391,12.43920339]
[1771840087727,0.95203683,80.419,80.39,12.63935241]
[1771840087928,0.95203683,80.419,80.39,0.2]
[1771840088326,0.95203683,80.409,80.39,0.2]
[1771840088528,0.95203683,80.399,80.372,12.44211376]
[1771840090635,3.69383402,80.434,80.372,12.44211376]
[1771840090636,0.95203683,80.439,80.391,0.82699462]
[1771840090821,0.95203683,80.439,80.401,0.82699462]
[1771840091237,0.95203683,80.429,80.39,10.73816393]
[1771840091932,0.95203683,80.429,80.372,43.54747383]
[1771840091933,0.95203683,80.429,80.391,0.82208499]
[1771840092534,0.95203683,80.429,80.39,9.91607894]
[1771840092535,0.95203683,80.428,80.393,0.81723174]
[1771840093638,0.95203683,80.428,80.383,0.81243424]
[1771840093843,0.95203683,80.428,80.39,9.91607894]
[1771840094741,0.95203683,80.426,80.391,12.43920339]
[1771840095820,0.95203683,80.426,80.392,0.80219862]
[1771840097238,0.95203683,80.426,80.4,9.91607894]
[1771840098039,0.85493562,80.424,80.4,9.91607894]
[1771840098239,12.43394466,80.425,80.382,12.44059615]
[1771840098240,0.85493562,80.419,80.382,12.44059615]
[1771840098534,0.85493562,80.419,80.39,9.91607894]
[1771840099637,0.85493562,80.417,80.39,9.91607894]
[1771840101252,0.85493562,80.417,80.4,9.91607894]
[1771840101448,0.85493562,80.417,80.391,12.43920339]
[1771840101743,0.85493562,80.417,80.384,12.44022141]
[1771840102045,0.85493562,80.417,80.39,9.91607894]
[1771840102229,0.85493562,80.417,80.384,12.44022141]
[1771840102542,0.85493562,80.415,80.37,0.75895536]
[1771840102722,0.85493562,80.409,80.37,10.6750343]
[1771840103226,0.85493562,80.409,80.371,0.75442224]
[1771840103941,0.85493562,80.407,80.372,12.44214403]
[1771840104138,9.91607894,80.39,80.343,0.75442224]
[1771840104331,9.91607894,80.39,80.341,12.44694489]
[1771840104332,9.91607894,80.37,80.341,12.44694489]
[1771840104643,0.85493562,80.369,80.341,12.44694489]
[1771840104819,0.85493562,80.369,80.333,0.74994119]
[1771840104820,0.85493562,80.369,80.334,12.44797559]
[1771840105319,0.85493562,80.369,80.34,22.56306845]
[1771840105718,0.85493562,80.369,80.34,0.2]
[1771840106121,0.85493562,80.367,80.34,0.2]
[1771840106623,0.85493562,80.367,80.34,10.11607894]
[1771840106926,0.85493562,80.367,80.34,0.2]
[1771840107434,12.44276328,80.368,80.34,0.2]
[1771840107435,0.85493562,80.359,80.34,0.2]
[1771840108450,0.85493562,80.349,80.31,9.91607894]
[1771840108631,0.85493562,80.349,80.311,0.86792479]
[1771840109232,0.85493562,80.339,80.306,12.45232922]
[1771840109432,43.55462533,80.359,80.31,9.91607894]
[1771840109433,0.7034046,80.344,80.31,9.91607894]
[1771840110050,0.7034046,80.352,80.321,0.86792479]
[1771840110235,9.91607894,80.35,80.321,0.86792479]
[1771840110436,3.69383402,80.351,80.321,0.86792479]
[1771840110630,16.83845347,80.351,80.321,0.86792479]
[1771840110854,0.69922363,80.35,80.321,0.86792479]
[1771840112137,0.69100521,80.349,80.313,0.86792479]
[1771840112460,0.69100521,80.339,80.284,31.13935969]
[1771840112647,0.69100521,80.329,80.296,0.86792479]
[1771840112847,0.69100521,80.329,80.3,9.91607894]
[1771840114359,0.69100521,80.329,80.296,0.86792479]
[1771840114951,0.68344199,80.328,80.3,9.91607894]
[1771840115451,0.68344199,80.328,80.296,0.86792479]
[1771840115864,0.68344199,80.328,80.292,0.86792479]
[1771840116944,9.91607894,80.32,80.282,0.86792479]